Cogmind - Beta 13 @@@ ROGUE MODE // 2024.04.04 @ 01:19:45 Player: Kara Result: Destroyed by S-10 Pest with Light Assault Rifle Performance ------------- Evolutions (1) 500 Regions Visited (4) 800 Robots Destroyed (80) 400 Value Destroyed (1618) 1618 Prototype IDs (7) 140 Alien Tech Used (0) 0 Bonus (37) 37 TOTAL SCORE: 3495 Bonus ------- High Alert Combat Kills 37 Cogmind --------- Core Integrity 0/400 Matter 300/300 Energy 280/280 System Corruption 0% Temperature Cool (0) Movement Walking (120) Location -9/Storage Parts ------- > --- POWER (1) -------- Cooled Ion Engine > --- PROPULSION (2) --- Aluminum Leg Improved Aluminum Leg > --- UTILITY (2) ------ Signal Interpreter Hacking Suite > --- WEAPON (4) ------- Flail Mining Claw Mining Claw Mining Claw > --- INVENTORY (5) ---- Cooled Ion Engine Improved Heat Sink Light Armor Plating Heavy EM Pulse Gun EM Shotgun Peak State ------------ > --- POWER ------------ Improved Ion Engine > --- PROPULSION ------- Hover Unit Improved Hover Unit > --- UTILITY ---------- Improved Terrain Scanner Medium Armor Plating > --- WEAPON ----------- Beam Rifle Heavy Assault Rifle Mining Claw Makeshift Spear > --- INVENTORY -------- Improved Heat Sink Power Shielding Hacking Suite Heavy Assault Rifle Mining Claw [Rating: 20] Favorites ----------- Power Cooled Ion Engine Engine Cooled Ion Engine Power Core Light Nuclear Core Propulsion Hover Unit Leg Aluminum Leg Wheel Wheel Hover Unit Hover Unit Flight Unit Flight Unit Utility Signal Interpreter Device Heat Sink Processor Signal Interpreter Hackware Hacking Suite Protection Power Shielding Weapon Mining Claw Energy Gun EM Shotgun Energy Cannon Beam Cannon Ballistic Gun Light Assault Rifle Ballistic Cannon Light Cannon Launcher Rocket Launcher Special Weapon Mining Laser Impact Weapon Flail Slashing Weapon Mining Claw Piercing Weapon Makeshift Spear Build | -11 -10 -10 -9 -9 ------- Run | Yrd Mat Min Mat Sto Slots Evolved 2 | . . . 2 . Power . | . . . . . Propulsion . | . . . . . Utility . | . . . . . Weapon 2 | . . . 2 . Parts Attached 68 | 5 17 7 39 . Power 7 | 1 1 1 4 . Engine 6 | 1 1 . 4 . Core 1 | . . 1 . . Reactor . | . . . . . Propulsion 13 | 2 3 . 8 . Treads . | . . . . . Leg 3 | . . . 3 . Wheel 3 | 2 . . 1 . Hover 5 | . 3 . 2 . Flight 2 | . . . 2 . Utility 14 | . 5 2 7 . Device 8 | . 4 2 2 . Storage . | . . . . . Processor 1 | . . . 1 . Hackware 1 | . . . 1 . Protection 4 | . 1 . 3 . Artifact . | . . . . . Weapon 34 | 2 8 4 20 . Energy Gun 11 | . 3 1 7 . Energy Cannon 1 | . 1 . . . Ballistic Gun 6 | 2 2 . 2 . Ballistic Cannon 1 | . 1 . . . Launcher 3 | . . 1 2 . Special Weapon 2 | . 1 1 . . Impact Weapon 1 | . . . 1 . Slashing Weapon 7 | . . . 7 . Piercing Weapon 2 | . . 1 1 . Special Melee Weapon . | . . . . . Unidentified Prototypes 1 | . . . 1 . Parts Lost 16 | . 1 . 15 . Power 2 | . . . 2 . Propulsion 5 | . . . 5 . Utility 2 | . 1 . 1 . Weapon 7 | . . . 7 . Highest Loss Streak 2 | . 1 . 2 . To Critical Strikes . | . . . . . Average Slot Usage (%) 94 | . 95 100 90 100 Engine 9 | . 14 2 8 11 Core 2 | . . 11 . . Leg 5 | . . . 6 22 Hover 14 | . 24 28 8 . Flight 1 | . . . 2 . Device 9 | . 17 14 6 . Processor 5 | . . . 8 11 Hackware 1 | . . . . 11 Protection 6 | . 6 14 5 . Energy Gun 7 | . 8 7 8 . Energy Cannon 1 | . 4 4 . . Ballistic Gun 3 | . 13 . . . Launcher 1 | . . 5 1 . Impact Weapon 1 | . . . . 11 Slashing Weapon 15 | . . . 22 33 Piercing Weapon 5 | . . 9 6 . Naked Turns . | . . . . . Heaviest Build 25 | 5 12 13 25 16 Greatest Support 23 | 20 20 12 23 23 Greatest Overweight (x) 5 | . . 1 5 . Average Overweight (x) . | . . . . . Largest Inventory Capacity 5 | 5 5 5 5 5 Average Capacity 5 | 5 5 5 5 5 Most Carried 5 | 5 5 5 5 5 Average Carried 4 | 2 4 4 4 5 Final Capacity 5 | 5 5 5 5 5 Final Carried 5 | 5 4 5 5 5 Class Distribution -------------------- 79% | Mutant 14% | Scavenger-Mutant Dominant Class ---------------- Mutant | -10/Materials Mutant | -10/Mines Mutant | -9/Materials Mutant | -9/Storage Resources | -11 -10 -10 -9 -9 ----------- Run | Yrd Mat Min Mat Sto Matter Collected 1067 | 258 295 70 329 115 Remotely . | . . . . . Salvage Created 2495 | 48 676 278 1169 324 Parts 193 | 4 47 23 97 22 Haulers Intercepted 4 | . 1 . 3 . Recyclers Shooed 2 | . 2 . . . Parts Field Recycled . | . . . . . Retrieved Matter . | . . . . . Parts Self-Destructed . | . . . . . Prevented . | . . . . . Kills | -11 -10 -10 -9 -9 ------- Run | Yrd Mat Min Mat Sto Combat Hostiles Destroyed 48 | 1 8 4 24 11 Melee 27 | . . . 17 10 Guns 11 | 1 6 1 3 . Cannons 5 | . 2 3 . . AOE 4 | . . . 4 . Classes Destroyed 11 | 2 6 1 2 . Worker 14 | 1 5 4 4 . Builder 4 | . 1 . 3 . Tunneler 1 | . . 1 . . Hauler 4 | . 1 . 3 . Recycler 2 | . 2 . . . Mechanic 1 | . . . 1 . Operator 4 | . 2 . 2 . Watcher 2 | . 2 . . . Swarmer 17 | . 3 . 8 6 Grunt 19 | 1 5 4 7 2 Sentry 12 | . . . 9 3 Best Kill Streak 6 | 1 5 2 5 6 Combat Bots Only 6 | 1 3 2 4 6 Max Kills in Single Turn 2 | 1 1 1 2 1 Gunslinging . | . . . . . Exploded 1 | . . . 1 . Melee 1 | . . . 1 1 Uniques/NPCs Destroyed . | . . . . . Combat | -11 -10 -10 -9 -9 -------- Run | Yrd Mat Min Mat Sto Hostile Shots Fired 236 | 2 30 11 157 36 Missed 69 | 1 11 3 47 7 Damage Taken 1886 | 11 190 118 1329 238 Core 506 | 11 64 27 334 70 Absorbed by Shields . | . . . . . Redirected to Shielding 20 | . . . 20 . Core Remaining (%) 77 | 95 . 59 . . Volleys Fired 113 | 5 70 12 26 . Largest 4 | 2 2 2 4 . Hottest 163 | 40 100 110 163 . Shots Fired 217 | 10 131 22 54 . Gun 174 | 10 109 12 43 . Cannon 32 | . 22 10 . . Launcher 11 | . . . 11 . Special . | . . . . . Kinetic 107 | 10 96 . 1 . Thermal 41 | . 13 22 6 . Explosive 6 | . . . 6 . Electromagnetic 63 | . 22 . 41 . Robot Hit Streak 14 | 10 14 4 7 . Robot Miss Streak 3 | . 3 2 2 . Penetration Max . | . . . . . Secondary Targets . | . . . . . Shots Hit Robots 202 | 10 81 16 75 20 Core Hits 111 | 4 39 11 47 10 Critical Kills . | . . . . . Critical Parts Destroyed . | . . . . . Critical Strikes 4 | . . 1 3 . Burn 1 | . . 1 . . Corrupt 1 | . . . 1 . Impale 2 | . . . 2 . Melee Attacks 131 | . . 3 86 42 Impact 6 | . . . . 6 Slashing 100 | . . . 64 36 Piercing 25 | . . 3 22 . Sneak Attacks 16 | . . 3 12 1 Combat Hostiles 1 | . . . . 1 Follow-up Attacks 30 | . . . 17 13 Damage Inflicted 4076 | 82 845 340 2267 542 Guns 1160 | 82 650 86 342 . Cannons 297 | . 193 104 . . Explosions 588 | . . . 588 . Melee 2018 | . . 150 1326 542 Ramming 13 | . 2 . 11 . Kinetic 635 | 82 535 . 18 . Thermal 478 | . 123 190 165 . Explosive 430 | . . . 430 . Electromagnetic 502 | . 185 . 317 . Impact 139 | . . . . 139 Slashing 1420 | . . . 1017 403 Piercing 459 | . . 150 309 . Highest Corruption 3 | . 3 3 . . Average Corruption 2 | . 2 3 . . Corruption Purged . | . . . . . Corruption Blocked . | . . . . . Effects 13 | . 7 6 . . Message Errors 6 | . 2 4 . . Matter Fused 1 | . 1 . . . Heat Flow Errors 2 | . 1 1 . . Energy Discharges 1 | . 1 . . . Data Loss (minor) 3 | . 2 1 . . Overload Shots . | . . . . . Overflow Damage 212 | . . . 189 23 Projectiles . | . . . . . Explosions 5 | . . . 5 . Melee 207 | . . . 184 23 Knockbacks . | . . . . . Impact . | . . . . . Kinetic . | . . . . . Secondary . | . . . . . Self-Inflicted Damage 53 | . 1 . 52 . Shots 4 | . . . 4 . Rammed 10 | . 1 . 9 . Targets Rammed 10 | . 1 . 9 . Kicked . | . . . . . Crushed . | . . . . . Highest Temperature 160 | . 160 120 102 . Average Temperature 40 | . 38 54 35 . Received Heat Transfer 594 | 6 60 66 438 24 Siege Activations . | . . . . . Robots Corrupted . | . . . . . Combat Hostiles . | . . . . . Parts Fried 4 | . . . 1 3 Impact Corruptions 1 | . . . . 1 Robots Melted . | . . . . . Combat Hostiles . | . . . . . Parts Melted 1 | . 1 . . . Heat Transferred 926 | . 259 555 112 . Parts Sabotaged . | . . . . . Parts Stolen . | . . . . . Parts Stripped . | . . . . . Power Chain Reactions 3 | . . . 3 . Alert | -11 -10 -10 -9 -9 ------- Run | Yrd Mat Min Mat Sto Peak Influence 520 | 25 254 176 469 520 Initial 164 | . 16 52 1 164 Average 170 | 2 123 108 193 315 Maximum Alert Level 2 | . 1 . 2 2 Low Security (%) 67 | 100 77 100 57 28 Level 1 28 | . 22 . 38 47 Level 2 4 | . . . 3 24 Level 3 . | . . . . . Level 4 . | . . . . . Level 5 . | . . . . . High Security . | . . . . . Max Security . | . . . . . Squads Dispatched 9 | . 1 1 3 4 Investigation 7 | . 1 1 2 3 Extermination . | . . . . . Reinforcement 2 | . . . 1 1 Assault . | . . . . . Garrison . | . . . . . Intercept . | . . . . . Searches Triggered . | . . . . . Construction Impeded . | . . . . . Haulers Reinforced . | . . . . . Active Scanning Responses . | . . . . . Cargo Convoy Interrupts . | . . . . . Stealth | -11 -10 -10 -9 -9 --------- Run | Yrd Mat Min Mat Sto Distress Signals 8 | . 1 . 5 2 Communications Jammed . | . . . . . Distress Signals . | . . . . . Times Spotted 69 | 1 15 4 34 15 Peak Tracking Total 9 | 1 4 2 5 9 Tactical Retreats 3 | . . . 3 . Traps | -11 -10 -10 -9 -9 ------- Run | Yrd Mat Min Mat Sto Traps Triggered 5 | . 2 . 2 1 Indirectly 1 | . . . 1 . Trap Hack Attempts . | . . . . . Triggered . | . . . . . Disarmed . | . . . . . Reprogrammed . | . . . . . Reused . | . . . . . Traps Extracted . | . . . . . Installed . | . . . . . Triggered . | . . . . . Machines | -11 -10 -10 -9 -9 ---------- Run | Yrd Mat Min Mat Sto Machines Disabled 4 | . . . 3 1 Max in Single Turn 2 | . . . 2 1 Machines Repaired . | . . . . . Machines Dismantled . | . . . . . Machines Sabotaged . | . . . . . Overloaded Fab Kills . | . . . . . Hacking | -11 -10 -10 -9 -9 --------- Run | Yrd Mat Min Mat Sto Machines Accessed 15 | . 7 1 4 3 Terminals 12 | . 5 1 3 3 Fabricators . | . . . . . Repair Stations 2 | . 1 . 1 . Recycling Units 1 | . 1 . . . Scanalyzers . | . . . . . Garrison Access . | . . . . . Total Hacks 55 | . 18 4 15 18 Successful 23 | . 8 2 8 5 Failed 32 | . 10 2 7 13 Catastrophic 5 | . . . 2 3 Database Lockouts . | . . . . . Manual 1 | . . . 1 . Terminals 46 | . 12 4 12 18 Fabricators . | . . . . . Repair Stations 4 | . 1 . 3 . Recycling Units 5 | . 5 . . . Scanalyzers . | . . . . . Garrison Access . | . . . . . Terminal Hacks 19 | . 5 2 7 5 Record 7 | . 1 . 3 3 Part Schematic 1 | . . . . 1 Robot Analysis 1 | . . . 1 . Prototype ID Bank 3 | . 2 . 1 . Repair Station Index 1 | . . . . 1 Alert Level 1 | . . . 1 . Locate Traps 2 | . 2 . . . Dispatch Records 2 | . . 2 . . Zone Layout 1 | . . . 1 . Fabricator Hacks . | . . . . . Repair Station Hacks 2 | . 1 . 1 . Scan Component 2 | . 1 . 1 . Recycling Unit Hacks 2 | . 2 . . . Recycle Component 1 | . 1 . . . Process 1 | . 1 . . . Scanalyzer . | . . . . . Garrison Access Hacks . | . . . . . Unauthorized Hacks . | . . . . . Terminals . | . . . . . Fabricators . | . . . . . Repair Stations . | . . . . . Recycling Units . | . . . . . Scanalyzers . | . . . . . Garrison Access . | . . . . . Data Cores Recovered 3 | . 2 . 1 . Used 1 | . 1 . . . Hacking Detections 14 | . 6 1 4 3 Full Trace Events 10 | . 3 1 3 3 Feedback Events . | . . . . . Feedback Blocked . | . . . . . Robot Schematics Acquired . | . . . . . Robots Built . | . . . . . Authchips . | . . . . . Time . | . . . . . Total Robot Build Rating . | . . . . . Part Schematics Acquired 1 | . . . . 1 Parts Built . | . . . . . Authchips . | . . . . . Time . | . . . . . Total Part Build Rating . | . . . . . Parts Repaired . | . . . . . Time . | . . . . . Parts Recycled 1 | . 1 . . . Recycled Matter 138 | . 138 . . . Retrieved Matter . | . . . . . Retrieved Components . | . . . . . Parts Scanalyzed . | . . . . . Part Schematics Acquired . | . . . . . Parts Damaged . | . . . . . Bothacking | -11 -10 -10 -9 -9 ------------ Run | Yrd Mat Min Mat Sto Used RIF Installer . | . . . . . Robots Hacked . | . . . . . Non-combat . | . . . . . Combat . | . . . . . Robot Hacks Applied . | . . . . . Relay Couplers Released . | . . . . . Fabnet Peak Effective % . | . . . . . Robots Rewired . | . . . . . Allies Hacked . | . . . . . Hacks Repelled . | . . . . . Allies | -11 -10 -10 -9 -9 -------- Run | Yrd Mat Min Mat Sto Total Allies . | . . . . . Largest Group . | . . . . . Highest-Rated Group . | . . . . . Highest-Rated Ally . | . . . . . Total Orders . | . . . . . Ally Attacks . | . . . . . Total Damage . | . . . . . Kills . | . . . . . Allies Corrupted . | . . . . . Allies Melted . | . . . . . Intel | -11 -10 -10 -9 -9 ------- Run | Yrd Mat Min Mat Sto Robot Analysis Total 1 | . . . 1 . Derelict Logs Recovered 2 | . . 2 . . Drone Launches . | . . . . . Drone Recoveries . | . . . . . Exploration | -11 -10 -10 -9 -9 ------------- Run | Yrd Mat Min Mat Sto Turns Passed 3146 | 89 623 524 1637 273 Spaces Moved 2380 | 82 658 664 836 140 Core 28 | 18 . . 10 . Treads . | . . . . . Legs 472 | . . . 332 140 Wheels 147 | 64 55 . 28 . Hover 1662 | . 603 664 395 . Flight 71 | . . . 71 . Fastest Speed 37 | 50 56 56 37 120 Average Speed 90 | 73 58 69 129 120 Slowest Speed 440 | 80 80 116 440 120 Overloaded Moves . | . . . . . Propulsion Burnouts . | . . . . . Robots Hopped . | . . . . . Cave-ins Triggered . | . . . . . Exploration Rate (%) 58 | 8 85 88 76 35 Regions Visited 4 Branch Regions 2 Pre-discovered Areas . | . . . . . Known Exits Taken 1 | . . . 1 . Unknown Exits Taken 3 | 1 1 1 . . Scrap Searched . | . . . . . Spaces Dug 1 | . . . 1 . Terrain Destroyed 58 | . . . 58 . Melee 1 | . . . 1 . Projectile . | . . . . . AOE 57 | . . . 57 . Terrain Rammed . | . . . . . Walls Destroyed . | . . . . . Machines Disabled . | . . . . . Actions | -11 -10 -10 -9 -9 --------- Run | Yrd Mat Min Mat Sto Total 3001 | 103 787 697 1223 191 Wait 239 | . 9 1 202 27 Move 2376 | 81 657 663 835 140 Hop . | . . . . . Pick Up 72 | 11 18 6 37 . Fast Attach . | . . . . . Attach 32 | 5 6 . 21 . Detach . | . . . . . Swap 36 | . 11 7 18 . Drop 40 | 1 15 5 19 . Fire 113 | 5 70 12 26 . Melee 83 | . . 3 56 24 Ram 10 | . 1 . 9 . Kick . | . . . . . Crush . | . . . . . Escape Stasis . | . . . . . Rewire . | . . . . . Trap . | . . . . . Miscellaneous . | . . . . . Route ------- -11/Scrapyard -10/Materials (discovered 3 exits: *Mat x2 / *Min) -10/Mines (discovered 3 exits: *Mat x2 / *Sub) -9/Materials (discovered 5 exits: *Mat x3 / *Min / *Sto) -9/Storage History --------- Turn | Location | Event 2 | -11/Scrapyard | Met Revision 17 80 | -11/Scrapyard | Discovered new exit (range 8) 90 | -11/Scrapyard | Entered Materials 288 | -10/Materials | Discovered new exit (range 13) 304 | -10/Materials | Build established: Mutant 488 | -10/Materials | Discovered new exit (range 3) 611 | -10/Materials | Discovered new exit (range 10) 713 | -10/Materials | Entered Mines 770 | -10/Mines | Discovered new exit (range 5) 870 | -10/Mines | A weapon hastily lodged in a ceiling crevice suddenly fell to the ground 962 | -10/Mines | Learned Materials stockpile data 963 | -10/Mines | Identified exit to Subcaves 1004 | -10/Mines | Received a Rocket Launcher from a helpful Derelict 1022 | -10/Mines | Discovered new exit (range 8) 1237 | -10/Mines | Entered Materials 1237 | -9/Materials | Evolved 2 slots: Weapon x2 1557 | -9/Materials | Discovered new exit (range 12) 1573 | -9/Materials | Identified exit to Mines 1876 | -9/Materials | Discovered new exit (range 8) 2191 | -9/Materials | Core integrity fell below 50% 2412 | -9/Materials | Discovered new exit (range 4) 2415 | -9/Materials | Identified exit to Materials 2456 | -9/Materials | Core integrity fell below 20% 2651 | -9/Materials | Discovered exit to Materials (range 10) 2759 | -9/Materials | Discovered new exit (range 12) 2785 | -9/Materials | Identified exit to Storage 2874 | -9/Materials | Entered Storage 3147 | -9/Storage | Destroyed by S-10 Pest with Light Assault Rifle Last Messages --------------- 03117_ K-01 Serf collects debris. 03130_ W-16 Scout sends out distress signal. 03132_ K-01 Serf collects debris. 03136_ ALERT: Hostiles spotted, dispatching reinforcements to Terminal S012. 03138_ K-01 Serf collects debris. 03139_ S-10 Pest destroyed. 03141_ K-01 Serf collects debris. 03141_ R-06 Scavenger collects Lgt. Assault Rifle. 03142_ Flail follow-up attack on S-10 Pest. 03142_ S-10 Pest destroyed. 03142_ R-06 Scavenger collects Flight Unit. 03143_ K-01 Serf collects debris. 03144_ R-06 Scavenger collects Flight Unit. 03145_ K-01 Serf collects debris. 03145_ W-16 Scout sends out distress signal. 03145_ Mining Claw follow-up attack on S-10 Pest. 03146_ K-01 Serf collects debris. Map ----- +----------------------------------------------------+ | # " " ####### ##+#########??????????????????? | | # #?????## ### """"" #??????????????????? | | # #??????# #?# """"" #??????????????????? | | #####+########### ### """"" #??????????????????? | | # #??????????????????? | | + ##?????????????????? | | # #?????????????????? | | #####+#########+### # ##?????????????????? | | ?# #???????? # #??????????????????? | | ?# #???????? #####+#####??????????????????? | | ?# #???????? #???# #T#????????????????????? | | ?# #???????# ##### + "????????????????????? | | ?# #???????# u###????????????????????? | | ## #???????####### #??????????????????????? | | "# #?????????????#u#??????????????????????? | | "# #?????????????# #??????????????????????? | | "# #????????######/###????????????????????? | | ###########????????# r #????????????????????? | | ???????????????????# u #????????????????????? | | ???????????????????# #????????????????????? | | ???????????????????# w #????????????????????? | | ???????????????????# #????????????????????? | | ???????????????????# k #????????????????????? | | ???????????????????# k #????????????????????? | | ???????????????????# #????????????????????? | | ???????????????????# r@ #????????????????????? | | ???????????????????#####s####????????????????????? | | ?????????????????????? r% ??????????????????????? | | ???????????????????? ????????????????????? | | ??????????????????# ??????????????????? | | ??????????????????## ????????????????? | | ???????????????????# ??????????????? | | ???????????????????# ????????????? | | ???????????????????+ ???????????? | | ?????????????????? # ????????????? | | ?????????????????" # #############+##????????????? | | ?????????????????"?# ????????????????????????????? | | ???????????????????# ????????????????????????????? | | ???????????????????#?????????????????????????????? | | ?????????????????????????????????????????????????? | | ?????????????????????????????????????????????????? | | ?????????????????????????????????????????????????? | | ?????????????????????????????????????????????????? | | ?????????????????????????????????????????????????? | | ?????????????????????????????????????????????????? | | ?????????????????????????????????????????????????? | | ?????????????????????????????????????????????????? | | ?????????????????????????????????????????????????? | | ?????????????????????????????????????????????????? | | ?????????????????????????????????????????????????? | +----------------------------------------------------+ Best States ------------- Heat Dissipation 39 Energy Generation 14 Energy Capacity 280 Matter Stores 300 Matter Capacity 300 Sight Range 16 Terrain Scan Range 16 Terrain Scan Density 10 Additional Mass Support 6 Armor Coverage 225 Power Shielding 33 Evasion (%) 55 Offensive Hacking 10 Item Schematics ----------------- Particle Cannon | -9/Storage | Hacked Robot Schematics ------------------ None Fabricated ------------ Nothing Alien Tech Used ----------------- None Achievements -------------- Dynamic Key Party Time Challenges ------------ None Game ------ Seed SurveybotArcMace Manual? 0 Play Time 00:51:38 Cumulative 2.5 hours Start 2024.04.04 @ 00:27:47 End 2024.04.04 @ 01:19:45 Sessions 1 Manual Loads 0 Difficulty Rogue Special Mode None Game No. 2 Rogue 2 Adventurer 0 Explorer 0 Win Type - Total 0 Types 0/0/0/0/0/0/0/0/0 Lore% 2 Gallery% 5 Achievement% 4 Wizard Run 0 Options --------- Layout 1 ASCII 0 Keyboard 0 Movement Numpad Keybinds 0 Fullscreen 1 Font 24/Smallcaps Map View 50x35 Zoom Use 0% Tactical HUD 1 Map Filters NONE Filters NONE Steam 1 RUN: c2903141-1957-4192-97ee-e1a148959061